Cogmind - Beta 17 @@@ ROGUE MODE // 2026.08.08 @ 07:45:16 // AFD2020/Player2 Player: Xom is good btw Result: Destroyed by S-10 Pest with Light Assault Rifle Performance ------------- Evolutions (0) 0 Regions Visited (1) 200 Robots Destroyed (12) 60 Value Destroyed (187) 187 Prototype IDs (1) 20 Alien Tech Used (0) 0 Bonus (8039) 8039 TOTAL SCORE: 8506 Bonus ------- Follower Combat Kills 369 Prayed to X0-1V1 5000 Major X0-1V1 Interference 3000 Friendly Fire -330 Cogmind --------- Core Integrity 0/150 Matter 890/900 Energy 1500/1500 System Corruption 18% Temperature Cool (0) Movement Core (50) Location -10/Materials Parts ------- > --- POWER (2) -------- (None) > --- PROPULSION (1) --- Light Treads (fused) > --- UTILITY (2) ------ Hacking Suite > --- WEAPON (2) ------- Heavy Hammer (fused) > --- INVENTORY (5) ---- Seismic Detector Peak State ------------ > --- POWER ------------ (None) > --- PROPULSION ------- Flight Unit > --- UTILITY ---------- Hacking Suite X0-1V1's Piety Tracker > --- WEAPON ----------- Light Assault Rifle Light Assault Rifle > --- INVENTORY -------- Ion Engine Wheel Compact Wheel Seismic Detector [Rating: 19] Favorites ----------- Power Ion Engine Engine Ion Engine Propulsion Flight Unit Treads Light Treads Leg Aluminum Leg Wheel Compact Wheel Flight Unit Flight Unit Utility Hacking Suite Device Seismic Detector Storage Small Storage Unit Processor Transport Network Coupler Hackware Hacking Suite Weapon Light Assault Rifle Energy Gun Small Laser Ballistic Gun Light Assault Rifle Special Weapon Mining Laser Impact Weapon Heavy Hammer Build | -11 -10 ------- Run | Yrd Mat Slots Evolved . | . . Power . | . . Propulsion . | . . Utility . | . . Weapon . | . . Parts Attached 13 | 1 12 Power . | . . Engine . | . . Core . | . . Reactor . | . . Propulsion 3 | . 3 Treads 1 | . 1 Leg . | . . Wheel 1 | . 1 Hover . | . . Flight 1 | . 1 Utility 7 | 1 6 Device 2 | 1 1 Storage . | . . Processor 3 | . 3 Hackware 2 | . 2 Protection . | . . Artifact . | . . Weapon 3 | . 3 Energy Gun . | . . Energy Cannon . | . . Ballistic Gun 2 | . 2 Ballistic Cannon . | . . Launcher . | . . Special Weapon 1 | . 1 Impact Weapon . | . . Slashing Weapon . | . . Piercing Weapon . | . . Special Melee Weapon . | . . Unidentified Prototypes 1 | . 1 Parts Lost 3 | . 3 Power . | . . Propulsion 1 | . 1 Utility 1 | . 1 Weapon 1 | . 1 Highest Loss Streak 3 | . 3 To Critical Strikes 1 | . 1 Average Backups 3 | 6 3 Power . | 1 . Propulsion 1 | 4 1 Utility . | . . Weapon . | 1 . Tool/Special . | . . Unused Backups 14 | 6 8 Power 2 | 1 1 Propulsion 7 | 2 5 Utility 2 | 1 1 Weapon 3 | 2 1 Tool/Special . | . . Average Slot Usage (%) 67 | . 67 Leg 5 | . 5 Flight 10 | . 10 Device 5 | . 5 Processor 5 | . 5 Hackware 11 | . 11 Energy Gun 2 | . 2 Ballistic Gun 20 | . 20 Special Weapon 2 | . 2 Impact Weapon 1 | . 1 Peak Build Rating 19 | 7 19 Average Rating 6 | 6 6 On Entrance 6 | 6 7 Avg Prop Armor Cover (%) 19 | . 19 Naked Turns . | . . Heaviest Build 14 | 14 12 Greatest Support 20 | 20 4 Greatest Overweight (x) 2 | . 2 Average Overweight (x) . | . . Largest Inventory Capacity 8 | 8 8 Average Capacity 5 | 8 5 Most Carried 7 | 7 6 Average Carried 3 | 6 3 Final Capacity 8 | 8 5 Final Carried 7 | 7 1 Class Distribution -------------------- 69% | Scavenger-Mutant 30% | Mutant Dominant Class ---------------- Scavenger-Mutant | -10/Materials Resources | -11 -10 ----------- Run | Yrd Mat Matter Collected 432 | 210 222 Remotely . | . . Salvage Created 328 | 108 220 Parts 26 | 10 16 Haulers Intercepted 1 | . 1 Recyclers Shooed 2 | . 2 Parts Field Recycled . | . . Retrieved Matter . | . . Parts Self-Destructed . | . . Prevented . | . . Parts Restored . | . . Kills | -11 -10 ------- Run | Yrd Mat Combat Hostiles Destroyed 3 | . 3 Guns 3 | . 3 Classes Destroyed 9 | 2 7 Worker 1 | . 1 Builder 1 | . 1 Tunneler 2 | 2 . Hauler 1 | . 1 Recycler 1 | 1 . Operator 2 | . 2 Watcher 1 | . 1 Swarmer 1 | . 1 Grunt 2 | . 2 Best Kill Streak 4 | 2 4 Combat Bots Only 1 | . 1 Max Kills in Single Turn 1 | 1 1 Gunslinging . | . . Exploded . | . . Melee . | . . Uniques/NPCs Destroyed . | . . Combat | -11 -10 -------- Run | Yrd Mat Hostile Shots Fired 74 | . 74 Missed 22 | . 22 Hits 52 | . 52 Projectile 52 | . 52 Critical Strikes 2 | . 2 Damage Taken 506 | . 506 Core 195 | . 195 Absorbed by Shields . | . . Ignored by Resistances 13 | . 13 Core Remaining (%) 100 | 100 . Volleys Fired 83 | 9 74 Largest 2 | 2 2 Hottest 90 | 90 40 Shots Fired 139 | 18 121 Gun 139 | 18 121 Cannon . | . . Launcher . | . . Special . | . . Kinetic 117 | . 117 Thermal 22 | 18 4 Explosive . | . . Electromagnetic . | . . Robot Hit Streak 8 | 5 8 Robot Miss Streak 5 | 2 5 Penetration Max . | . . Secondary Targets . | . . Shots Hit Robots 76 | 13 63 Core Hits 24 | 3 21 Critical Kills . | . . Critical Parts Destroyed 1 | . 1 Critical Strikes 3 | 2 1 Burn 2 | 2 . Smash 1 | . 1 Melee Attacks 7 | . 7 Impact 7 | . 7 Slashing . | . . Piercing . | . . Sneak Attacks 1 | . 1 Combat Hostiles . | . . Follow-up Attacks . | . . Damage Inflicted 950 | 135 815 Guns 728 | 135 593 Cannons . | . . Explosions 117 | . 117 Melee 102 | . 102 Ramming 3 | . 3 Kinetic 570 | . 570 Thermal 275 | 135 140 Explosive . | . . Electromagnetic . | . . Impact 102 | . 102 Slashing . | . . Piercing . | . . Highest Corruption 18 | . 18 Average Corruption 17 | . 17 Corruption Purged . | . . Corruption Blocked . | . . Effects 6 | . 6 Message Errors 1 | . 1 Matter Fused 1 | . 1 Heat Flow Errors 1 | . 1 Parts Fused 1 | . 1 Data Loss (major) 1 | . 1 Alerts 1 | . 1 Overload Shots . | . . Overflow Damage 51 | . 51 Projectiles . | . . Explosions 15 | . 15 Melee 36 | . 36 Knockbacks 1 | . 1 Impact 1 | . 1 Kinetic . | . . Secondary . | . . Self-Inflicted Damage . | . . Shots . | . . Rammed . | . . Targets Rammed 2 | . 2 Kicked 2 | . 2 Crushed . | . . Highest Temperature 287 | 140 287 Average Temperature 95 | 62 128 Received Heat Transfer 108 | . 108 Siege Activations . | . . Martial Activations . | . . Shielding Activations . | . . Robots Disrupted . | . . Combat Hostiles . | . . Robots Corrupted 1 | . 1 Combat Hostiles . | . . Parts Fried 1 | . 1 Impact Corruptions 2 | . 2 Robots Melted 1 | 1 . Combat Hostiles . | . . Parts Melted 1 | 1 . Heat Transferred 632 | 520 112 Parts Sabotaged . | . . Parts Stolen . | . . Parts Stripped . | . . Power Chain Reactions . | . . Alert | -11 -10 ------- Run | Yrd Mat Maximum Alert Level 2 | . 2 Low Security (%) 74 | 100 72 Level 1 21 | . 22 Level 2 4 | . 4 Level 3 . | . . Level 4 . | . . Level 5 . | . . High Security . | . . Max Security . | . . Peak Influence 443 | 5 443 Initial 3 | . 3 Average 121 | 2 130 Influence Increases 819 | 15 804 Destroy 0b10 Robot/C 440 | . 440 Destroy 0b10 Robot/NC 75 | 15 60 Destroy Leader 88 | . 88 Allied During Kill 138 | . 138 Select Force Hacks 30 | . 30 Disable Machine 30 | . 30 Destroy Structure 18 | . 18 Influence Decreases 376 | 10 366 Entered New Map 2 | . 2 Time Decay 314 | 10 304 Lost Part 60 | . 60 Squads Dispatched 7 | . 7 Investigation 3 | . 3 Extermination . | . . Reinforcement 4 | . 4 Assault . | . . Garrison . | . . Intercept . | . . Searches Triggered . | . . Construction Impeded . | . . Haulers Reinforced . | . . Active Scanning Responses . | . . Cargo Convoy Interrupts . | . . Stealth | -11 -10 --------- Run | Yrd Mat Distress Signals 2 | . 2 Communications Jammed . | . . Distress Signals . | . . Times Spotted 40 | . 40 Peak Tracking Total 6 | . 6 Tactical Retreats . | . . Traps | -11 -10 ------- Run | Yrd Mat Traps Triggered . | . . Indirectly . | . . Trap Hack Attempts . | . . Triggered . | . . Disarmed . | . . Reprogrammed . | . . Reused . | . . Traps Extracted . | . . Installed . | . . Triggered . | . . Machines | -11 -10 ---------- Run | Yrd Mat Machines Disabled 2 | . 2 Max in Single Turn 2 | . 2 Machines Repaired . | . . Machines Dismantled . | . . Machines Sabotaged . | . . Overloaded Fab Kills . | . . Hacking | -11 -10 --------- Run | Yrd Mat Machines Accessed 1 | . 1 Terminals . | . . Fabricators . | . . Repair Stations . | . . Recycling Units 1 | . 1 Scanalyzers . | . . Garrison Access . | . . Total Hacks 1 | . 1 Successful 1 | . 1 Failed . | . . Catastrophic . | . . Database Lockouts . | . . Manual 2 | . 2 Terminals . | . . Fabricators . | . . Repair Stations . | . . Recycling Units 1 | . 1 Scanalyzers . | . . Garrison Access . | . . Terminal Hacks . | . . Fabricator Hacks . | . . Repair Station Hacks . | . . Recycling Unit Hacks . | . . Scanalyzer . | . . Garrison Access Hacks . | . . Unauthorized Hacks 1 | . 1 Terminals . | . . Fabricators . | . . Repair Stations . | . . Recycling Units 1 | . 1 Tunnel 1 | . 1 Scanalyzers . | . . Garrison Access . | . . Data Cores Recovered . | . . Used . | . . Hacking Detections . | . . Full Trace Events . | . . Feedback Events . | . . Feedback Blocked . | . . Robot Schematics Acquired . | . . Robots Built . | . . Authchips . | . . Time . | . . Total Robot Build Rating . | . . Part Schematics Acquired . | . . Parts Built . | . . Authchips . | . . Time . | . . Total Part Build Rating . | . . Part Studies Acquired . | . . Parts Repaired . | . . Time . | . . Parts Recycled . | . . Recycled Matter . | . . Retrieved Matter . | . . Retrieved Components . | . . Parts Scanalyzed . | . . Part Schematics Acquired . | . . Parts Damaged . | . . Bothacking | -11 -10 ------------ Run | Yrd Mat Used RIF Installer . | . . Robots Hacked . | . . Non-combat . | . . Combat . | . . Robot Hacks Applied . | . . Relay Couplers Released . | . . Fabnet Peak Effective % . | . . Robots Rewired . | . . Allies Hacked . | . . Hacks Repelled . | . . Allies | -11 -10 -------- Run | Yrd Mat Total Allies 1 | . 1 Largest Group 1 | . 1 Highest-Rated Group 57 | . 57 Highest-Rated Ally 57 | . 57 Total Orders . | . . Ally Attacks 65 | . 65 Total Damage 1103 | . 1103 Kills 25 | . 25 Allies Corrupted . | . . Allies Melted . | . . X0-1V1 Amusement Gains 11 | . 11 Good Acts 26 | . 26 Bad Acts 29 | . 29 Intel | -11 -10 ------- Run | Yrd Mat Active Infowar (turns) 705 | 4 701 Seismic 332 | 4 328 T.N.C. 373 | . 373 Robot Analysis Total . | . . Derelict Logs Recovered . | . . Drone Launches . | . . Drone Recoveries . | . . Exploration | -11 -10 ------------- Run | Yrd Mat Turns Passed 994 | 69 925 Spaces Moved 358 | 7 351 Core 139 | . 139 Treads . | . . Legs 7 | 7 . Wheels . | . . Hover . | . . Flight 212 | . 212 Fastest Speed 40 | 120 40 Average Speed 46 | 120 44 Slowest Speed 200 | 120 200 Overloaded Moves . | . . Propulsion Burnouts . | . . Robots Hopped 1 | . 1 Potential Cave-ins . | . . Cave-ins Triggered . | . . Exploration Rate (%) 29 | 2 57 Regions Visited 1 Branch Regions . Pre-discovered Areas 1 | . 1 Known Exits Taken . | . . Unknown Exits Taken 1 | 1 . Scrap Searched . | . . Spaces Dug . | . . Terrain Destroyed 17 | . 17 Melee . | . . Projectile . | . . AOE 17 | . 17 Terrain Rammed . | . . Walls Destroyed . | . . Machines Disabled . | . . Actions | -11 -10 --------- Run | Yrd Mat Total 1065 | 49 1016 Wait 578 | 32 546 Move 355 | 6 349 Hop 1 | . 1 Pick Up 2 | 1 1 Fast Attach 11 | 1 10 Attach 2 | . 2 Detach 9 | . 9 Swap . | . . Drop 15 | . 15 Fire 83 | 9 74 Melee 7 | . 7 Ram . | . . Kick 2 | . 2 Crush . | . . Escape Stasis . | . . Rewire . | . . Trap . | . . Miscellaneous . | . . Route ------- -11/Scrapyard -10/Materials (discovered 4 exits: *Mat x2 / Min / [*Sub]) History --------- Turn | Location | Event 51 | -11/Scrapyard | Discovered new exit (range 2) 70 | -11/Scrapyard | Entered Materials 254 | -10/Materials | Discovered new exit (range 12) 394 | -10/Materials | Prayed at D.C.S.S. Altar Unit 508 | -10/Materials | X0-1V1 sent you into danger 530 | -10/Materials | X0-1V1 announced a LAN party 537 | -10/Materials | Build established: Scavenger-Mutant 548 | -10/Materials | Discovered new exit (range 5) 727 | -10/Materials | Energy generation permanently improved by X0-1V1 (+10; -100 max core) 811 | -10/Materials | System corruption reached 10% 812 | -10/Materials | Core integrity restored by X0-1V1 (+39) 815 | -10/Materials | X0-1V1 vaporized surrounding terrain (radius 18) 837 | -10/Materials | X0-1V1 foreshadows a heat wave 843 | -10/Materials | Identified exit to Materials 843 | -10/Materials | X0-1V1 revealed exit location to -9/Materials 854 | -10/Materials | Core integrity restored by X0-1V1 (+28) 858 | -10/Materials | X0-1V1 sent you into danger 867 | -10/Materials | X0-1V1 mutated your Propulsion slot to Utility slot 867 | -10/Materials | X0-1V1 vaporized surrounding terrain (radius 17) 874 | -10/Materials | X0-1V1 activates XOMVISION 885 | -10/Materials | Identified exit to Mines 885 | -10/Materials | X0-1V1 revealed exit location to -10/Mines 886 | -10/Materials | Core integrity restored by X0-1V1 (+42) 902 | -10/Materials | X0-1V1 upgraded hostiles (x1) 924 | -10/Materials | X0-1V1 sent hostile S-10 Pest (x5) 949 | -10/Materials | Core integrity fell below 50% 958 | -10/Materials | X0-1V1 sent you into danger 958 | -10/Materials | X0-1V1 mutated your Utility slot to Power slot 975 | -10/Materials | Lost 3 parts (1n1u1w) 976 | -10/Materials | Ambient heat levels rising (+10) 983 | -10/Materials | X0-1V1 sent hostile S-10 Pest (x5) 989 | -10/Materials | Core integrity fell below 20% 995 | -10/Materials | Destroyed by S-10 Pest with Light Assault Rifle Last Messages --------------- Investigation squad. 00976_ ALERT: Sterilization system anomaly impacting ambient heat levels +10. 00980_ Melee accuracy returns to normal. 00983_ X0-1V1: "C'mon, do something!" S-10 Pest form resolidifies at new position. 00984_ X0-1V1: "The ol' switcheroo!" Form resolidifies at new position. S-10 Pest form resolidifies at new position. K-01 Serf form resolidifies at new position. S-10 Pest form resolidifies at new position. T-07 Excavator form resolidifies at new position. 00985_ ZVNXMA23PBGX#PHW Y%QRROPV LET/1OK||L 00990_ S-10 Pest knocked back. 00992_ K-01 Serf collects debris. 00995_ Ranged accuracy returns to normal. 00995_ X0-1V1: "Huh? Did I miss anything?" Map ----- +----------------------------------------------------+ | " " " " ""????? | | " """ " " + "?????? | | " """ " " " ??????? | | " """ " " " ???????? | | " " " " ???????? | | """"###" " "" ???????? | | " " ""????????? | | " " ???????????? | | " ""<"""""X " ???????????? | | " " " " ? ?????????????? | | " " " " ###???????????????? | | " " " # ##########?????????????????? | | " " ! " ## # #??????????????????? | | " " " ## # #??????????????????? | | " " " #### # #??????????????????? | | " " " ##### # #?!????????????????? | | """"""""+""""""## s###+#/###?????"" ?????????? | | % % @ ### """ #????????? | | T *%+= """ +???+????? | | ### #????????? | | ####### #####+#####?#######????????? | | #?????####### t !#????????????????? | | #???????????# """ #????????????????? | | ###### #???????????# """ #????????????????? | | #????#####???????????# """ s #????????????????? | | !#????????????????????# s@sk """#????????????????? | | ##????????????????????# !! R"#????????????????? | | #?????????????????????# !! """#????????????????? | | ??????????????????????# ! #????????????????? | | ??????????????????????###########????????????????? | | | | | | | | | | | | | | | | | | | | | | | | | | | | | | | | | | | | | | | | | +----------------------------------------------------+ Best States ------------- Heat Dissipation 83 Energy Generation 23 Energy Capacity 1500 Matter Stores 900 Matter Capacity 900 Sight Range 18 Terrain Scan Density 10 Resistance: TH 25 Evasion (%) 62 Offensive Hacking 20 Item Schematics ----------------- None Robot Schematics ------------------ None Fabricated ------------ Nothing Repaired ---------- Nothing Studied --------- None Alien Tech Used ----------------- None Achievements -------------- None Challenges ------------ None Player 2 | -11 -10 ---------- Run | Yrd Mat Slots Evolved . | . . Power . | . . Propulsion . | . . Utility . | . . Weapon . | . . Parts Attached 12 | . 12 Parts Lost 3 | . 3 Damage Taken 637 | . 637 Core 169 | . 169 Player 2/Cogmind (%) 46 | . 46 Absorbed by Shields . | . . Damage Inflicted 1103 | . 1103 Player 2/Cogmind (%) 53 | . 57 Combat Hostiles Destroyed 19 | . 19 Player 2/Cogmind (%) 86 | . 86 Game ------ Seed DeliveryHybridSuit Manual? 0 Play Time 00:10:56 Cumulative 1703.4 hours Start 2026.08.08 @ 07:37:40 End 2026.08.08 @ 07:45:16 Sessions 1 Manual Loads 0 Difficulty Rogue Special Mode AFD2020/Player2 Game No. 2827 Rogue 2820 Adventurer 0 Explorer 7 Win Type - Total 149 Types 40/17/58/3/3/5/21/1/1/0 Lore% 93 Gallery% 88 Achievement% 60 Wizard Run 0 Options --------- Layout 1 ASCII 0 Keyboard 1 Movement Numpad Keybinds 1 Fullscreen 2 Font 24/Smallcaps Map View 50x35 Zoom Use 0% Tactical HUD 1 Map Filters NONE Filters NONE Steam 1 RUN: 90b202d7-4618-4ff1-9213-5c4b393571f0